bitfinex-derivatives/quotes_BTCF0:USTF0_20250805
["timestamp","ask_amount","ask_price","bid_price","bid_amount"]
[1754407852931,1.3478763,112990.0,112980.0,0.00171]
[1754407854332,0.79287339,112990.0,112980.0,0.00171]
[1754407854528,1.3478763,112990.0,112980.0,0.00171]
[1754407854840,1.4231563,112990.0,112980.0,0.00171]
[1754407855039,1.4251563,112990.0,112980.0,0.00271]
[1754407856035,0.87015339,112990.0,112980.0,0.00271]
[1754407856236,1.4251563,112990.0,112980.0,0.00271]
[1754407856639,1.34452485,112990.0,112980.0,0.00271]
[1754407857541,1.34452485,112990.0,112980.0,0.00971]
[1754407858139,0.87015339,112990.0,112980.0,0.00971]
[1754407858342,1.34452485,112990.0,112980.0,0.00971]
[1754407858644,1.36593082,112990.0,112980.0,0.00271]
[1754407859035,1.34452485,112990.0,112980.0,0.00271]
[1754407859236,1.36593084,112990.0,112980.0,0.00271]
[1754407860743,1.44746783,112990.0,112980.0,0.00271]
[1754407863843,0.2707393,112970.0,112960.0,0.06962436]
[1754407864040,0.97800775,112970.0,112960.0,0.64028]
[1754407864444,0.422115,112960.0,112950.0,1.59352493]
[1754407864647,0.97802345,112960.0,112950.0,2.23380493]
[1754407864846,0.97802345,112960.0,112950.0,2.22504]
[1754407865346,0.97802345,112960.0,112950.0,2.4021306]
[1754407865837,0.97802345,112960.0,112950.0,2.22504]
[1754407866037,0.98002345,112960.0,112950.0,2.22604]
[1754407866237,0.98002345,112960.0,112950.0,1.86524]
[1754407866437,0.98002345,112960.0,112950.0,2.22604]
[1754407866640,0.424115,112960.0,112950.0,2.22604]
[1754407866840,0.98002345,112960.0,112950.0,1.59467597]
[1754407867043,0.219685,112960.0,112950.0,2.48564636]
[1754407867243,0.219685,112960.0,112950.0,2.48764636]
[1754407868740,0.287065,112960.0,112950.0,2.48764636]
[1754407868941,0.330435,112960.0,112950.0,2.48764636]
[1754407869143,0.424115,112960.0,112950.0,2.47873039]
[1754407869446,0.424115,112960.0,112950.0,2.30163979]
[1754407869746,0.424115,112960.0,112950.0,2.47873039]
[1754407870341,0.424115,112960.0,112950.0,2.48793745]
[1754407870543,0.424115,112960.0,112950.0,2.30163979]
[1754407870739,0.424115,112960.0,112950.0,2.47873039]
[1754407870941,0.424115,112960.0,112950.0,2.30163979]
[1754407871140,0.424115,112960.0,112950.0,2.47873039]
[1754407871447,0.424115,112960.0,112950.0,2.48751519]
[1754407871942,0.380745,112960.0,112950.0,2.48751519]
[1754407872242,0.219685,112960.0,112950.0,2.48751519]
[1754407872644,0.179075,112960.0,112950.0,2.48751519]
[1754407872948,0.002,112960.0,112950.0,3.12264305]
[1754407873247,0.3062148,112970.0,112960.0,0.183145]
[1754407873548,0.3062148,112970.0,112960.0,0.545745]
[1754407874342,0.5106448,112970.0,112960.0,0.545745]
[1754407874647,1.06655325,112970.0,112960.0,0.5457449]
[1754407874949,1.06655325,112970.0,112960.0,0.5439449]
[1754407875642,1.06755325,112970.0,112960.0,0.003]
[1754407875847,1.06755325,112970.0,112960.0,0.6432]
[1754407876148,0.5116448,112970.0,112960.0,0.6432]
[1754407876343,1.06755325,112970.0,112960.0,0.64807]
[1754407876548,1.06855325,112970.0,112960.0,0.65007]
[1754407876938,1.06855325,112970.0,112960.0,0.6472]
[1754407877143,1.06755325,112970.0,112960.0,0.6462]
[1754407877651,1.06755325,112970.0,112960.0,0.6442]
[1754407878246,1.42835325,112970.0,112960.0,0.64416]
[1754407880947,1.42835325,112970.0,112960.0,0.004]
[1754407881253,1.42835325,112970.0,112960.0,0.64412]
[1754407881649,1.42835325,112970.0,112960.0,0.004]
[1754407881949,1.42835325,112970.0,112960.0,0.64412]
[1754407884746,1.42835325,112970.0,112960.0,0.004]
[1754407885550,1.42935325,112970.0,112960.0,0.004]
[1754407885752,0.274385,112960.0,112950.0,0.64008]
[1754407885948,1.33163345,112960.0,112950.0,0.64008]
[1754407886748,1.33163345,112960.0,112950.0,0.71929941]
[1754407887351,1.33263345,112960.0,112950.0,0.72129941]
[1754407888551,1.33263345,112960.0,112950.0,0.72282941]
[1754407888949,1.33363345,112960.0,112950.0,0.72282941]
[1754407889253,1.33363345,112960.0,112950.0,0.72129941]
[1754407889448,1.33363345,112960.0,112950.0,0.64208]
[1754407889641,1.33363345,112960.0,112950.0,0.72153542]
[1754407889847,1.33363345,112960.0,112950.0,0.64208]
[1754407890250,0.97283345,112960.0,112950.0,0.00353]
[1754407890551,0.97283345,112960.0,112950.0,1.39827905]
[1754407890552,0.002,112960.0,112950.0,1.39827905]
[1754407890752,0.00105,112960.0,112950.0,1.73897002]
[1754407890959,0.00105,112960.0,112950.0,2.29487847]
[1754407891252,0.00105,112960.0,112950.0,2.29482715]
[1754407891557,0.00105,112960.0,112950.0,1.7389187]
[1754407892453,0.03856,112960.0,112950.0,1.7369187]
[1754407892654,0.04056,112960.0,112950.0,1.7409187]
[1754407892955,0.216635,112960.0,112950.0,1.7429187]
[1754407893152,0.216635,112960.0,112950.0,1.5658547]
[1754407893455,0.216635,112960.0,112950.0,1.2658547]
[1754407893756,0.90379345,112960.0,112950.0,1.2649047]
[1754407894057,0.97283345,112960.0,112950.0,0.64761]
[1754407894446,0.97283345,112960.0,112950.0,0.64604]
[1754407895445,0.97283345,112960.0,112950.0,0.006]
[1754407895651,1.33363345,112960.0,112950.0,0.64604]
[1754407895954,1.33363345,112960.0,112950.0,0.006]
[1754407896152,0.97283345,112960.0,112950.0,0.64604]
[1754407897154,0.98160094,112960.0,112950.0,0.64604]
[1754407897354,1.34240094,112960.0,112950.0,0.64604]
[1754407897756,0.78649249,112960.0,112950.0,0.64604]
[1754407897956,0.98160094,112960.0,112950.0,0.64604]
[1754407898157,0.416925,112960.0,112950.0,0.8231307]
[1754407898456,0.97283345,112960.0,112950.0,0.8231307]
[1754407899251,0.416925,112960.0,112950.0,0.8231307]
[1754407899458,0.97283345,112960.0,112950.0,0.8231307]
[1754407899760,1.34270912,112960.0,112950.0,0.64604]
[1754407899954,1.34270912,112960.0,112950.0,0.004]
[1754407900154,1.34270912,112960.0,112950.0,0.64456]
[1754407900955,0.97083345,112960.0,112950.0,0.8206507]
[1754407901161,0.97183345,112960.0,112950.0,0.8206507]
[1754407901353,0.97183345,112960.0,112950.0,0.64356]
[1754407902062,1.33263345,112960.0,112950.0,0.64356]
[1754407902660,1.33263345,112960.0,112940.0,1.4460496]
[1754407902661,0.4149407,112950.0,112940.0,1.4460496]
[1754407902860,0.97084915,112950.0,112940.0,2.4469296]
[1754407903053,0.97084915,112950.0,112940.0,1.2222496]
[1754407903254,0.2146507,112950.0,112940.0,1.2222496]
[1754407903652,0.03756,112950.0,112940.0,1.2222496]
[1754407903863,0.215635,112960.0,112950.0,0.1770907]
[1754407904165,0.03756,112960.0,112950.0,0.5378907]
[1754407904455,0.2588966,112970.0,112960.0,0.177075]
[1754407904657,0.2146314,112970.0,112960.0,0.537875]
[1754407904857,0.03756,112970.0,112960.0,0.537875]
[1754407905059,0.3589973,112980.0,112970.0,0.1770593]
[1754407905260,0.3589973,112980.0,112970.0,0.8171393]
[1754407905454,0.10012,112980.0,112970.0,1.1779393]
[1754407905859,0.3075651,112990.0,112980.0,0.1770436]
[1754407906056,0.04872,112990.0,112980.0,0.5378436]
[1754407906252,0.04872,112990.0,112980.0,1.57076805]
[1754407907071,0.04972,112990.0,112980.0,1.57176805]
[1754407907255,0.04972,112990.0,112980.0,1.0158596]
[1754407908061,0.04972,112990.0,112980.0,1.02488712]
[1754407908255,0.08728,112990.0,112980.0,0.54787112]
[1754407908659,0.08828,112990.0,112980.0,0.55187112]
[1754407908861,0.03956,112990.0,112980.0,0.55187112]
[1754407909262,0.216588,112990.0,112980.0,0.3658]
[1754407909460,0.216588,112990.0,112980.0,0.5448437]
[1754407909956,0.280318,112990.0,112980.0,0.5448437]
[1754407910156,0.280318,112990.0,112980.0,0.3678]
[1754407910356,0.87547645,112990.0,112980.0,0.6472]
[1754407910767,0.87547645,112990.0,112980.0,0.64908]
[1754407910966,1.23627645,112990.0,112980.0,0.64896]
[1754407911165,0.319568,112990.0,112980.0,0.64896]
[1754407911361,0.03956,112990.0,112980.0,1.1868036]
[1754407911668,0.002,112990.0,112980.0,1.1868036]
[1754407912467,0.002,112990.0,112980.0,1.6638196]
[1754407912672,0.002,112990.0,112980.0,2.21972805]
[1754407913568,0.002,112990.0,112980.0,1.6638196]
[1754407914076,0.002,112990.0,112980.0,1.3638196]
[1754407914869,0.002,112990.0,112980.0,1.1868036]
[1754407915071,0.002,112990.0,112980.0,1.3638196]
[1754407915773,0.002,112990.0,112980.0,1.1868036]
[1754407916071,0.002,112990.0,112980.0,2.21972805]
[1754407916566,0.002,112990.0,112980.0,1.6638196]
[1754407916760,0.002,112990.0,112980.0,2.21972805]
[1754407918070,0.002,112990.0,112980.0,1.6638196]
[1754407918266,0.002,112990.0,112980.0,2.21972805]
[1754407919676,0.002,112990.0,112980.0,1.57776805]
[1754407919871,0.002,112990.0,112980.0,2.22028805]
[1754407920262,0.002,112990.0,112980.0,1.0218596]
[1754407920464,0.002,112990.0,112980.0,1.6643396]
[1754407920673,0.04062,112990.0,112980.0,1.6643396]
[1754407920877,0.002,112990.0,112980.0,2.58104805]
[1754407921377,0.2654399,113040.0,113010.0,0.0442457]
[1754407921569,0.03862,113030.0,113020.0,1.3129916]
[1754407923075,0.04162,113030.0,113020.0,1.34882271]
[1754407923377,0.14487,113030.0,113020.0,1.34882271]
[1754407923574,0.03862,113030.0,113020.0,1.2727476]
[1754407923779,0.04062,113030.0,113020.0,1.2727476]
[1754407924071,0.2888053,113030.0,113020.0,0.5890236]
[1754407924277,0.97356375,113030.0,113020.0,1.01052]
[1754407924467,0.97356375,113030.0,113020.0,1.1875009]
[1754407924669,0.4176553,113030.0,113020.0,1.1875009]
[1754407924878,0.04062,113030.0,113020.0,1.1875009]
[1754407925080,0.04062,113030.0,113020.0,1.25697161]
[1754407926383,0.1052,113030.0,113020.0,1.25697161]
[1754407926680,0.04062,113030.0,113020.0,1.26608487]
[1754407926982,0.04062,113030.0,113020.0,1.26740487]
[1754407929273,0.3208353,113030.0,113020.0,1.26740487]
[1754407929480,0.04062,113030.0,113020.0,1.26740487]
[1754407929681,0.04062,113030.0,113020.0,1.26440487]
[1754407929879,0.002,113030.0,113020.0,1.82231332]
[1754407930080,0.002,113030.0,113020.0,2.26406532]
[1754407930680,0.002,113030.0,113020.0,1.99926532]
[1754407931073,0.002,113030.0,113020.0,1.44335687]
[1754407931280,0.002,113030.0,113020.0,1.99926532]
[1754407932879,0.002,113030.0,113020.0,1.44335687]
[1754407933081,0.04062,113030.0,113020.0,1.26556487]
[1754407933383,0.14287,113030.0,113020.0,1.27156487]
[1754407933584,0.1042,113030.0,113020.0,1.27156487]
[1754407933882,0.03962,113030.0,113020.0,1.27156487]
[1754407935477,0.001,113030.0,113020.0,1.82447332]
[1754407936080,0.2801496,113040.0,113030.0,0.1769653]
[1754407936376,0.14187,113040.0,113030.0,0.5377653]
[1754407936984,0.4156396,113040.0,113030.0,0.5377653]
[1754407937187,0.23869,113040.0,113030.0,0.5377653]
[1754407937386,0.23869,113040.0,113030.0,0.5417653]
[1754407937387,0.03962,113040.0,113030.0,0.5417653]
[1754407937984,0.001,113040.0,113030.0,0.5417653]
[1754407938189,0.001,113040.0,113030.0,1.09767375]
[1754407938988,0.001,113040.0,113030.0,1.27460975]
[1754407939190,0.001,113040.0,113030.0,1.57460975]
[1754407939489,0.001,113040.0,113030.0,1.59281108]
[1754407939790,0.03862,113060.0,113050.0,0.1769339]
[1754407940084,0.03862,113060.0,113050.0,2.7644139]
[1754407940884,0.03862,113060.0,113050.0,2.7820146]
[1754407942284,0.2155383,113060.0,113050.0,2.7820146]
[1754407942492,0.3195083,113060.0,113050.0,2.7820146]
[1754407942682,0.14259,113060.0,113050.0,2.7820146]
[1754407942888,0.03862,113060.0,113050.0,2.7830146]
[1754407943087,0.03962,113060.0,113050.0,2.7860146]
[1754407943289,0.2793283,113060.0,113050.0,2.7860146]
[1754407943888,0.10241,113060.0,113050.0,2.7860146]
[1754407944288,0.03962,113060.0,113050.0,2.7860146]
[1754407944895,0.97092675,113060.0,113050.0,1.22768]
[1754407945298,1.27092675,113060.0,113050.0,1.86924]
[1754407945497,1.71412075,113060.0,113050.0,1.68317]
[1754407945699,0.1769496,113040.0,113030.0,0.37900133]
[1754407945897,0.87631805,113040.0,113030.0,0.01820133]
[1754407946097,1.53711805,113040.0,113030.0,0.65968133]
[1754407947008,0.9812096,113040.0,113030.0,0.66268133]
[1754407947309,1.54211805,113040.0,113030.0,0.66380133]
[1754407947696,1.54211805,113040.0,113030.0,0.84076663]
[1754407947896,0.3254096,113040.0,113030.0,0.84076663]
[1754407948101,0.3254096,113040.0,113030.0,1.33953663]
[1754407948904,0.3264096,113040.0,113030.0,1.33653663]
[1754407949207,0.3274096,113040.0,113030.0,1.33653663]
[1754407949610,0.3264096,113040.0,113030.0,1.33653663]
[1754407949803,0.3244096,113040.0,113030.0,1.33653663]
[1754407949998,0.3244096,113040.0,113030.0,0.79877133]
[1754407950198,0.1809496,113040.0,113030.0,1.33653663]
[1754407950614,0.3244096,113040.0,113030.0,1.33653663]
[1754407952816,0.3244096,113040.0,113030.0,1.15957133]
[1754407953011,0.3244096,113040.0,113030.0,1.33653663]
[1754407953607,0.88031805,113040.0,113030.0,0.76172133]
[1754407953814,0.88031805,113040.0,113030.0,0.66020133]
[1754407954013,1.24111805,113040.0,113030.0,0.66020133]
[1754407954505,1.54111805,113040.0,113030.0,0.001]
[1754407954705,0.176981,113020.0,113010.0,0.07907511]
[1754407954915,0.87634945,113020.0,113010.0,0.72051511]
[1754407955113,0.87634945,113020.0,113010.0,0.64144]
[1754407955705,0.87634945,113020.0,113010.0,0.8832966]
[1754407956015,0.320441,113020.0,113010.0,0.85848511]
[1754407956209,0.320441,113020.0,113010.0,1.39628171]
[1754407956608,0.176981,113020.0,113010.0,1.39828171]
[1754407956811,0.177981,113020.0,113010.0,1.3222066]
[1754407957006,0.321441,113020.0,113010.0,1.14521]
[1754407957214,0.87734945,113020.0,113010.0,1.14521]
[1754407957413,0.87934945,113020.0,113010.0,1.10416]
[1754407958115,0.87934945,113020.0,113010.0,1.0681]
[1754407958317,0.88824425,113020.0,113010.0,0.64244]
[1754407958820,0.87934945,113020.0,113010.0,0.64244]
[1754407959117,0.323441,113020.0,113010.0,0.78041]
[1754407959505,0.322441,113020.0,113010.0,0.78041]
[1754407959705,0.178981,113020.0,113010.0,0.9574066]
[1754407959912,0.218471,113020.0,113010.0,0.9574066]
[1754407960113,0.322441,113020.0,113010.0,0.9574066]
[1754407960514,0.322441,113020.0,113010.0,1.3182066]
[1754407960910,0.178981,113020.0,113010.0,1.3182066]
[1754407961116,0.1789809,113020.0,113010.0,1.87411505]
[1754407961417,0.002,113020.0,113010.0,1.95319016]
[1754407961617,0.3096813,113040.0,113030.0,0.3149352]
[1754407961911,0.3096813,113040.0,113030.0,1.13969]
[1754407962318,0.4531413,113040.0,113030.0,1.13969]
[1754407963513,0.4551413,113040.0,113030.0,1.3166553]
[1754407963714,0.4591413,113040.0,113030.0,1.14069]
[1754407964813,1.01104975,113040.0,113030.0,1.13969]
[1754407965021,1.01204975,113040.0,113030.0,1.14169]
[1754407965720,0.4149613,113040.0,113030.0,1.3186553]
[1754407965918,0.4129613,113040.0,113030.0,1.3186553]
[1754407966118,0.3106813,113040.0,113030.0,1.3186553]
[1754407966621,0.001,113040.0,113030.0,1.87456375]
[1754407966810,0.2654168,113050.0,113040.0,0.1769496]
[1754407967014,0.2654168,113050.0,113040.0,0.6757196]
[1754407967213,0.2211807,113050.0,113040.0,0.6757196]
[1754407967616,0.2211807,113050.0,113040.0,0.49877]
[1754407967818,0.3646407,113050.0,113040.0,0.49877]
[1754407968318,0.2211807,113050.0,113040.0,0.6757197]
[1754407968712,0.1326941,113060.0,113040.0,0.6757197]
[1754407968913,0.3308703,113060.0,113050.0,1.316144]
[1754407969315,0.2424085,113060.0,113050.0,1.316144]
[1754407969514,0.2424085,113060.0,113050.0,1.32507452]
[1754407970420,0.2424085,113060.0,113050.0,1.32607452]
[1754407971020,0.2434085,113060.0,113050.0,1.33107452]
[1754407971816,0.1779285,113060.0,113050.0,1.33107452]
[1754407972022,0.001,113060.0,113050.0,1.33107452]
[1754407972223,0.001,113060.0,113050.0,1.88698297]
[1754407972623,0.1779184,113060.0,113050.0,1.88698297]
[1754407972824,0.001,113060.0,113050.0,1.88698297]
[1754407973119,0.1779184,113060.0,113050.0,1.88698297]
[1754407973525,0.001,113060.0,113050.0,1.88698297]
[1754407973722,0.1779184,113060.0,113050.0,1.88698297]
[1754407974727,0.1779184,113060.0,113050.0,1.33107452]
[1754407976625,0.1779184,113060.0,113050.0,1.88698297]
[1754407976926,0.1779184,113060.0,113050.0,1.33107452]
[1754407977129,0.1779184,113060.0,113050.0,1.33107442]
[1754407977626,0.4113084,113060.0,113050.0,1.15414052]
[1754407977827,0.4113084,113060.0,113050.0,1.14521]
[1754407978826,0.4113084,113060.0,113050.0,1.322184]
[1754407979020,0.4113084,113060.0,113050.0,1.14525]
[1754407979223,0.2690884,113060.0,113050.0,1.14525]
[1754407979531,0.001,113060.0,113050.0,1.322184]
[1754407979725,0.001,113060.0,113050.0,1.87809245]
[1754407979921,0.1779184,113060.0,113050.0,1.87809245]
[1754407980323,0.001,113060.0,113050.0,1.95716756]
[1754407981128,0.1779184,113060.0,113050.0,1.95716756]
[1754407981427,0.1779184,113060.0,113050.0,1.40125911]
[1754407981629,0.1779184,113060.0,113050.0,1.322184]
[1754407982119,0.1779184,113060.0,113050.0,1.43335752]
[1754407983727,0.1779184,113060.0,113050.0,1.418734]
[1754407984733,0.1779184,113060.0,113050.0,0.775654]
[1754407984930,0.1779184,113060.0,113050.0,1.418734]
[1754407985931,0.1779184,113060.0,113050.0,0.85482037]
[1754407986430,0.1779184,113060.0,113050.0,1.49730037]
[1754407986832,0.4113084,113060.0,113050.0,0.67788637]
[1754407987034,0.4113084,113060.0,113050.0,1.24112]
[1754407987434,0.3452484,113060.0,113050.0,1.24112]
[1754407987936,0.3692684,113060.0,113050.0,1.24112]
[1754407988129,0.4113084,113060.0,113050.0,1.24112]
[1754407988722,1.44412085,113060.0,113050.0,0.36684]
[1754407988928,1.44412085,113060.0,113050.0,1.00952]
[1754407989129,1.80492085,113060.0,113050.0,0.72788637]
[1754407989826,1.26721685,113060.0,113050.0,1.18460637]
[1754407990029,0.4113084,113060.0,113050.0,1.31512637]
[1754407990529,0.2030284,113060.0,113050.0,1.412894]
[1754407990730,0.1779184,113060.0,113050.0,1.49213498]
[1754407990931,0.1779184,113060.0,113050.0,2.07997597]
[1754407991232,0.1779184,113060.0,113050.0,1.34713352]
[1754407991528,0.4113084,113060.0,113050.0,1.34713352]
[1754407991736,0.4113084,113060.0,113050.0,1.52406752]
[1754407991935,0.1779184,113060.0,113050.0,1.52406752]
[1754407993236,0.1779184,113060.0,113050.0,1.60031768]
[1754407993438,0.1779184,113060.0,113050.0,1.48914416]
[1754407994038,0.001,113060.0,113050.0,1.48914416]
[1754407994237,0.4335164,113070.0,113060.0,0.4033583]
[1754407994440,0.4335164,113070.0,113060.0,0.83389097]
[1754407994838,0.3892877,113070.0,113060.0,0.7641583]
[1754407995934,0.3892877,113070.0,113060.0,0.84340746]
[1754407996335,0.3902877,113070.0,113060.0,0.84640746]
[1754407996535,0.3018351,113070.0,113060.0,1.40231591]
[1754407996737,0.3018227,113070.0,113060.0,0.84640746]
[1754407996937,0.12492,113070.0,113060.0,0.84640746]
[1754407997135,0.3018227,113070.0,113060.0,0.84640746]
[1754407998043,0.12492,113070.0,113060.0,0.84640746]
[1754407998237,0.3018227,113070.0,113060.0,0.84640746]
[1754407998830,0.1779027,113070.0,113060.0,0.84640746]
[1754407999640,0.4112927,113070.0,113060.0,0.73886775]
[1754408001040,0.96720115,113070.0,113060.0,0.70225775]
[1754408001246,0.96720115,113070.0,113060.0,1.32003775]
[1754408001443,0.96720115,113070.0,113060.0,1.35664775]
[1754408001742,0.1779027,113070.0,113060.0,1.45431689]
[1754408001944,0.1779027,113070.0,113060.0,1.56549041]
[1754408002141,0.1779027,113070.0,113060.0,1.56549051]
[1754408002340,0.4076627,113070.0,113060.0,1.38857211]
[1754408003144,0.4076627,113070.0,113060.0,1.48020689]
[1754408003848,0.4076627,113070.0,113060.0,1.30328859]
[1754408004350,0.4076627,113070.0,113060.0,1.48020689]
[1754408004547,0.001,113070.0,113060.0,1.48020689]
[1754408005051,0.1779027,113070.0,113060.0,0.83656689]
[1754408005250,0.001,113070.0,113060.0,1.47972689]
[1754408005748,0.1779026,113070.0,113060.0,1.47972689]
[1754408006250,0.4076626,113070.0,113060.0,1.30280859]
[1754408006847,0.96357105,113070.0,113060.0,0.4267]
[1754408007042,0.96357105,113070.0,113060.0,0.64576]
[1754408007244,1.80125905,113070.0,113060.0,0.08212807]
[1754408007449,1.80125905,113070.0,113060.0,0.006]
[1754408007647,0.4066783,113060.0,113050.0,0.07916807]
[1754408007949,1.32338675,113060.0,113050.0,0.72196807]
[1754408008157,1.80029075,113060.0,113050.0,0.54427807]
[1754408008355,1.80029075,113060.0,113050.0,0.48083807]
[1754408008558,0.2669396,113040.0,113030.0,0.14922352]
[1754408008756,0.82284805,113040.0,113030.0,0.79222352]
[1754408009158,0.82429805,113040.0,113030.0,0.79222352]
[1754408010259,0.82629805,113040.0,113030.0,0.79222352]
[1754408012659,0.83329805,113040.0,113030.0,0.79322352]
[1754408013060,0.83329805,113040.0,113030.0,0.85441352]
[1754408013558,0.83329805,113040.0,113030.0,0.644]
[1754408013759,1.19409805,113040.0,113030.0,0.68205]
[1754408013963,1.19409805,113040.0,113030.0,0.74324]
[1754408014165,1.19353805,113040.0,113030.0,0.76843]
[1754408014964,1.19409805,113040.0,113030.0,0.68205]
[1754408015859,1.19409805,113040.0,113030.0,0.74324]
[1754408017053,1.19409805,113040.0,113030.0,0.76843]
[1754408017259,1.19353805,113040.0,113030.0,1.0531253]
[1754408018062,0.6376296,113040.0,113030.0,1.0531253]
[1754408018560,0.2110796,113040.0,113030.0,1.4139253]
[1754408018754,0.1859496,113040.0,113030.0,1.4114853]
[1754408018954,0.2795496,113040.0,113030.0,1.23452]
[1754408019160,0.2804396,113040.0,113030.0,1.23452]
[1754408019360,0.1859496,113040.0,113030.0,1.4114853]
[1754408019760,0.1859496,113040.0,113030.0,1.23452]
[1754408019963,0.2613696,113040.0,113030.0,1.23452]
[1754408020366,0.1859496,113040.0,113030.0,1.4114853]
[1754408020567,0.1859496,113040.0,113030.0,1.23452]
[1754408020969,0.1859496,113040.0,113030.0,1.4114853]
[1754408021569,0.1859496,113040.0,113030.0,1.23452]
[1754408021769,0.1859496,113040.0,113030.0,1.4114853]
[1754408022372,0.1859496,113040.0,113030.0,1.23452]
[1754408023171,0.1859496,113040.0,113030.0,1.4114853]
[1754408023573,0.1468296,113040.0,113030.0,1.96739375]
[1754408023775,0.3034967,113050.0,113040.0,0.4091096]
[1754408023973,0.259254,113050.0,113040.0,0.7699096]
[1754408024273,0.08232,113050.0,113040.0,0.7699096]
[1754408024870,0.01842,113050.0,113040.0,1.32581805]
[1754408025066,0.1769313,113060.0,113050.0,0.270174]
[1754408025274,0.3095986,113070.0,113060.0,0.2701584]
[1754408025572,0.2904748,113080.0,113070.0,0.3441927]
[1754408025774,0.2653448,113080.0,113070.0,1.4101827]
[1754408027272,0.2653448,113080.0,113070.0,1.4111827]
[1754408028178,0.465356,113090.0,113080.0,0.4090471]
[1754408028371,0.465356,113090.0,113080.0,0.7698471]
[1754408028778,0.597236,113090.0,113080.0,0.7698471]
[1754408029476,0.637166,113090.0,113080.0,0.7698471]
[1754408029678,0.638166,113090.0,113080.0,0.7718471]
[1754408029975,0.703616,113090.0,113080.0,0.7718471]
[1754408031473,0.20204,113090.0,113080.0,0.7718471]
[1754408033280,0.20204,113090.0,113080.0,0.84145666]
[1754408034374,0.20204,113090.0,113080.0,1.39736511]
[1754408034772,0.07016,113090.0,113080.0,1.39736511]
[1754408034975,0.09912,113100.0,113090.0,0.2642414]
[1754408035176,0.09912,113100.0,113090.0,1.3995814]
[1754408035375,0.09912,113100.0,113090.0,1.95548985]
[1754408036174,0.05814,113140.0,113090.0,1.7422814]
[1754408036478,0.3637233,113140.0,113130.0,0.52222]
[1754408036685,0.3637233,113140.0,113130.0,1.3395889]
[1754408036880,0.4009433,113140.0,113130.0,1.3395889]
[1754408037075,0.4893302,113150.0,113140.0,0.16142]
[1754408037682,1.04523865,113150.0,113140.0,0.16142]
[1754408037882,1.12219865,113150.0,113140.0,0.16142]
[1754408038082,0.4009433,113140.0,113130.0,0.6990289]
[1754408038282,0.4009433,113140.0,113130.0,1.3398689]
[1754408038483,0.04022,113140.0,113130.0,1.3408689]
[1754408038780,0.3659833,113140.0,113130.0,1.3408689]
[1754408038988,0.16901,113140.0,113130.0,1.3408689]
[1754408039187,0.06163,113140.0,113130.0,1.3398689]
[1754408039486,0.03722,113140.0,113130.0,1.34901767]
[1754408039883,0.04022,113140.0,113130.0,1.35001767]
[1754408040081,0.003,113140.0,113130.0,1.35001767]
[1754408040788,0.2170133,113140.0,113130.0,1.34969767]
[1754408040983,0.22715,113140.0,113130.0,1.34969767]
[1754408041288,0.04022,113140.0,113130.0,1.34969767]
[1754408041490,0.4009432,113140.0,113130.0,1.34857767]
[1754408041784,0.22615,113140.0,113130.0,1.34957767]
[1754408042189,0.06363,113140.0,113130.0,1.34957767]
[1754408042489,0.03922,113140.0,113130.0,1.34957767]
[1754408043789,0.002,113140.0,113130.0,1.34957767]
[1754408044191,0.002,113140.0,113130.0,1.90548612]
[1754408044385,0.002,113140.0,113130.0,2.17028612]
[1754408044587,0.2139819,113160.0,113150.0,0.2404176]
[1754408044787,0.2139819,113160.0,113150.0,1.3395576]
[1754408044988,0.11977,113160.0,113150.0,1.3395576]
[1754408045489,0.04602126,113160.0,113150.0,1.3395576]
[1754408045791,0.22278316,113160.0,113150.0,1.34831967]
[1754408045989,0.10416126,113160.0,113150.0,1.34831967]
[1754408046186,0.2721219,113160.0,113150.0,1.34831967]
[1754408046389,0.03722,113160.0,113150.0,1.70911967]
[1754408046888,0.03722,113160.0,113150.0,1.78024337]
[1754408047684,0.04122,113160.0,113150.0,1.78124337]
[1754408047887,0.96082045,113160.0,113150.0,0.4576637]
[1754408048090,0.96082045,113160.0,113150.0,0.7375037]
[1754408048281,0.404912,113160.0,113150.0,1.4117613]
[1754408048485,0.404912,113160.0,113150.0,1.2349837]
[1754408048783,0.404912,113160.0,113150.0,1.4117613]
[1754408049179,0.308812,113160.0,113150.0,1.4117613]
[1754408049388,0.404912,113160.0,113150.0,1.2349837]
[1754408049585,0.96082045,113160.0,113150.0,0.0968637]
[1754408049785,0.96082045,113160.0,113150.0,0.64148]
[1754408049981,1.32162045,113160.0,113150.0,0.64148]
[1754408050388,0.96082045,113160.0,113150.0,0.64148]
[1754408051192,1.32162045,113160.0,113150.0,0.001]
[1754408051492,1.49837245,113160.0,113150.0,0.001]
[1754408051693,1.32162045,113160.0,113150.0,0.6412]
[1754408051990,0.96082045,113160.0,113150.0,0.9793976]
[1754408052392,0.96082045,113160.0,113150.0,0.6412]
[1754408052588,0.96082045,113160.0,113150.0,0.64132]
[1754408052792,1.43757245,113160.0,113150.0,0.64132]
[1754408053095,0.4009276,113150.0,113140.0,0.1767827]
[1754408053291,0.95683605,113150.0,113140.0,0.8171027]
[1754408054097,0.4009276,113150.0,113140.0,0.9801327]
[1754408054298,0.4019276,113150.0,113140.0,0.9811327]
[1754408055092,0.3639676,113150.0,113140.0,0.9811327]
[1754408055298,0.4019276,113150.0,113140.0,0.9811327]
[1754408055792,0.95783605,113150.0,113140.0,0.001]
[1754408055996,0.95783605,113150.0,113140.0,0.64092]
[1754408056198,0.95783605,113150.0,113140.0,0.64096]
[1754408056396,0.95783605,113150.0,113140.0,0.8177532]
[1754408056594,0.95753605,113150.0,113140.0,0.8177532]
[1754408056795,0.95753605,113150.0,113140.0,0.64096]
[1754408058189,0.95753605,113150.0,113140.0,0.8177532]
[1754408058595,0.95753605,113150.0,113140.0,0.9791732]
[1754408058998,0.95753605,113150.0,113140.0,0.80238]
[1754408059296,1.31833605,113150.0,113140.0,0.72327]
[1754408059495,0.95753605,113150.0,113140.0,0.6657]
[1754408059796,1.49510405,113150.0,113140.0,0.001]
[1754408060003,1.49510405,113150.0,113140.0,0.64084]
[1754408060198,1.49510405,113150.0,113140.0,0.001]
[1754408060905,1.13430405,113150.0,113140.0,0.001]
[1754408061398,1.49510405,113150.0,113140.0,0.001]
[1754408061791,0.3983744,113120.0,113110.0,0.4903]
[1754408062102,0.95428285,113120.0,113110.0,1.16917]
[1754408062403,0.95428285,113120.0,113110.0,1.02739]
[1754408062999,0.95428285,113120.0,113110.0,1.03039]
[1754408063601,0.95428285,113120.0,113110.0,1.09239]
[1754408063797,0.95428285,113120.0,113110.0,0.45255]